lending/lending_fUSD_20240206
["ID","MTS","AMOUNT","RATE_DAILY","PERIOD"]
[313349877,1707207037797,-728.69447258,0.00022789,2]
[313349878,1707207037808,-741.27723955,0.00022789,2]
[313349879,1707207037819,-420.8888349,0.00022789,2]
[313349880,1707207037831,-313.89851893,0.00022789,2]
[313349881,1707207037843,-280.22179706,0.00022789,2]
[313349885,1707207040182,-745.7961023,0.00022789,2]
[313349886,1707207040810,-10691.64919318,0.00022789,2]
[313349887,1707207040819,-800.0,0.00022814,2]
[313349888,1707207040828,-800.0,0.00022815,2]
[313349889,1707207040838,-499.99,0.00022815,2]
[313349890,1707207040847,-618.09,0.00022815,2]
[313349891,1707207040857,-620.72,0.00022815,2]
[313349892,1707207040866,-4289.9,0.00022815,2]
[313349893,1707207040875,-1223.68549506,0.00022824,2]
[313349894,1707207040885,-23998.13266591,0.00022897,2]
[313349895,1707207040894,-162.33,0.00022898,2]
[313349896,1707207040907,-16355.6778,0.00022899,2]
[313349897,1707207040916,-3962.47215782,0.000229,2]
[313349898,1707207040926,-5000.0,0.000229,2]
[313349899,1707207040935,-2657.82,0.000229,2]
[313349900,1707207040944,-188.03199239,0.000229,2]
[313349901,1707207040954,-1050.0,0.000229,2]
[313349902,1707207040964,-167.23466938,0.000229,2]
[313349903,1707207040974,-449.55660464,0.000229,2]
[313349904,1707207040984,-154.9661595,0.000229,2]
[313349905,1707207040993,-499.74991417,0.000229,2]
[313349906,1707207041003,-5611.0,0.00022924,2]
[313349907,1707207041012,-40577.62260348,0.00022924,2]
[313349908,1707207041025,-1293.85122542,0.00022924,2]
[313349921,1707207042516,-571.5261711,0.00022924,2]
[313349922,1707207042526,-2284.0,0.00022924,2]
[313349923,1707207042535,-2919.0,0.00022924,2]
[313349924,1707207042543,-19798.0,0.00022924,2]
[313349925,1707207042552,-1034.0,0.00022924,2]
[313349926,1707207042562,-150.0,0.00022943,2]
[313349927,1707207042571,-840.0,0.00022943,2]
[313349928,1707207042583,-950.0,0.00022943,2]
[313349929,1707207042596,-1232.0,0.00022943,2]
[313349930,1707207042605,-1251.0,0.00022943,2]
[313349931,1707207042615,-1727.10117333,0.00022997,2]
[313349932,1707207042625,-216.29823722,0.00022997,2]
[313349933,1707207042635,-1064.43200738,0.00022997,2]
[313349934,1707207042644,-156.14677915,0.00022997,2]
[313349935,1707207042654,-232.56304882,0.00022997,2]
[313349936,1707207042666,-221.43112762,0.00022997,2]
[313349937,1707207042675,-204.77506964,0.00022997,2]
[313349938,1707207042686,-279.94615861,0.00022997,2]
[313349939,1707207042696,-163.98940914,0.00022997,2]
[313349940,1707207042705,-155.98990218,0.00022997,2]
[313349941,1707207042715,-10443.22553039,0.00022997,2]
[313349942,1707207042725,-632.46168054,0.00022997,2]
[313349943,1707207042735,-249.88938403,0.00022997,2]
[313349944,1707207042745,-267.93667831,0.00022997,2]
[313349945,1707207042754,-156.03034355,0.00022997,2]
[313349946,1707207042763,-4670.40946995,0.00022997,2]
[313349947,1707207042773,-386.27010084,0.00022997,2]
[313349948,1707207042782,-1.28727135,0.00022997,2]
[313349949,1707207042794,-457.14295137,0.00022997,2]
[313349950,1707207042805,-851.94146667,0.00022997,2]
[313349951,1707207042818,-528.70248325,0.00022997,2]
[313349952,1707207042827,-155.82918366,0.00022997,2]
[313349953,1707207042837,-15600.05796925,0.00022997,2]
[313349954,1707207042849,-8774.16559879,0.00022997,2]
[313349956,1707207042858,-391.00097642,0.00022997,2]
[313349957,1707207042867,-155.22327242,0.00022997,2]
[313349958,1707207042877,-2156.30878877,0.00022997,2]
[313349959,1707207042886,-157.49704615,0.00022997,2]
[313349960,1707207042895,-2430.56058639,0.00022997,2]
[313349962,1707207042904,-34407.28171313,0.00022997,2]
[313349964,1707207042913,-338.86703874,0.00022998,2]
[313349966,1707207042922,-1052.92764862,0.00022998,2]
[313349967,1707207042936,-1183.44433846,0.00022998,2]
[313349968,1707207042949,-2075.01975365,0.00022998,2]
[313349969,1707207042958,-156.32047534,0.00022998,2]
[313349970,1707207042968,-303.29043206,0.00022998,2]
[313349971,1707207042978,-263.66577365,0.00022998,2]
[313349972,1707207042987,-156.00479395,0.00022998,2]
[313349973,1707207042997,-294.25360057,0.00022998,2]
[313349974,1707207043007,-376.04252086,0.00022998,2]
[313349975,1707207043017,-236.42904119,0.00022998,2]
[313349976,1707207043027,-481.080241,0.00022998,2]
[313349977,1707207043036,-3309.97832316,0.00022998,2]
[313349978,1707207043046,-167.0,0.00022999,2]
[313349979,1707207043055,-136.39145466,0.00022999,2]
[313349980,1707207043065,-2779.97546983,0.00022999,2]
[313349981,1707207043074,-2779.97546983,0.00022999,2]
[313349982,1707207043083,-2779.97546983,0.00022999,2]
[313349983,1707207043093,-2779.97546983,0.00022999,2]
[313349984,1707207043102,-2779.97546983,0.00022999,2]
[313349985,1707207043112,-2779.97546983,0.00022999,2]
[313349986,1707207043121,-2779.97546983,0.00022999,2]
[313349987,1707207043130,-2779.97546983,0.00022999,2]
[313349988,1707207043139,-2779.97546983,0.00022999,2]
[313349989,1707207043149,-2779.97546983,0.00022999,2]
[313349990,1707207043159,-2779.97546983,0.00022999,2]
[313349991,1707207043168,-2779.97546983,0.00022999,2]
[313349992,1707207043177,-2779.97546983,0.00022999,2]
[313349993,1707207043186,-2779.97546983,0.00022999,2]
[313349994,1707207043195,-2779.97546983,0.00022999,2]
[313349995,1707207043204,-2779.97546983,0.00022999,2]
[313349996,1707207043214,-2779.97546983,0.00022999,2]
[313349997,1707207043223,-2779.97546983,0.00022999,2]
[313349998,1707207043231,-2779.97546983,0.00022999,2]
[313349999,1707207043240,-2779.97546983,0.00022999,2]
[313350000,1707207043249,-2779.97546983,0.00022999,2]
[313350001,1707207043258,-2779.97546983,0.00022999,2]
[313350002,1707207043267,-2779.97546983,0.00022999,2]
[313350003,1707207043276,-2779.97546983,0.00022999,2]
[313350004,1707207043285,-2779.97546983,0.00022999,2]
[313350005,1707207043294,-2779.97546983,0.00022999,2]
[313350006,1707207043303,-2779.97546983,0.00022999,2]
[313350007,1707207043312,-2779.97546983,0.00022999,2]
[313350008,1707207043321,-2779.97546983,0.00022999,2]
[313350009,1707207043330,-2779.97546983,0.00022999,2]
[313350010,1707207043339,-2779.97546983,0.00022999,2]
[313350011,1707207043348,-2789.56159214,0.00022999,2]
[313350012,1707207043357,-2789.56159214,0.00022999,2]
[313350013,1707207043366,-2789.56159214,0.00022999,2]
[313350014,1707207043375,-2789.56159214,0.00022999,2]
[313350015,1707207043385,-2789.56159214,0.00022999,2]
[313350016,1707207043394,-2789.56159214,0.00022999,2]
[313350017,1707207043404,-2789.56159214,0.00022999,2]
[313350018,1707207043414,-2789.56159214,0.00022999,2]
[313350019,1707207043423,-2789.56159214,0.00022999,2]
[313350020,1707207043435,-2789.56159214,0.00022999,2]
[313350021,1707207043445,-2789.56159214,0.00022999,2]
[313350022,1707207043455,-2789.56159214,0.00022999,2]
[313350023,1707207043464,-2789.56159214,0.00022999,2]
[313350024,1707207043474,-2789.56159214,0.00022999,2]
[313350025,1707207043484,-2789.56159214,0.00022999,2]
[313350026,1707207043493,-2789.56159214,0.00022999,2]
[313350027,1707207043503,-2789.56159214,0.00022999,2]
[313350028,1707207043512,-2789.56159214,0.00022999,2]
[313350029,1707207043522,-2789.56159214,0.00022999,2]
[313350030,1707207043531,-2789.56159214,0.00022999,2]
[313350031,1707207043541,-2789.56159214,0.00022999,2]
[313350032,1707207043550,-2789.56159214,0.00022999,2]
[313350033,1707207043559,-2789.56159214,0.00022999,2]
[313350034,1707207043569,-2789.56159214,0.00022999,2]
[313350035,1707207043579,-2789.56159214,0.00022999,2]
[313350036,1707207043593,-2789.56159214,0.00022999,2]
[313350037,1707207043611,-2789.56159214,0.00022999,2]
[313350038,1707207043625,-2789.56159214,0.00022999,2]
[313350039,1707207043636,-2789.56159214,0.00022999,2]
[313350040,1707207043646,-17880.95,0.00022999,2]
[313350041,1707207043656,-500.0,0.00022999,2]
[313350042,1707207043666,-500.0,0.00022999,2]
[313350043,1707207043676,-500.0,0.00022999,2]
[313350044,1707207043689,-500.0,0.00022999,2]
[313350045,1707207043699,-500.0,0.00022999,2]
[313350046,1707207043708,-500.0,0.00022999,2]
[313350047,1707207043718,-500.0,0.00022999,2]
[313350048,1707207043727,-500.0,0.00022999,2]
[313350049,1707207043737,-500.0,0.00022999,2]
[313350050,1707207043747,-500.0,0.00022999,2]
[313350051,1707207043757,-500.0,0.00022999,2]
[313350052,1707207043766,-500.0,0.00022999,2]
[313350053,1707207043776,-500.0,0.00022999,2]
[313350054,1707207043785,-500.0,0.00022999,2]
[313350055,1707207043794,-160.03753194,0.00022999,2]
[313350056,1707207043804,-500.0,0.00022999,2]
[313350057,1707207043813,-500.0,0.00022999,2]
[313350058,1707207043823,-500.0,0.00022999,2]
[313350059,1707207043832,-500.0,0.00022999,2]
[313350060,1707207043842,-500.0,0.00022999,2]
[313350061,1707207043852,-500.0,0.00022999,2]
[313350062,1707207043861,-500.0,0.00022999,2]
[313350063,1707207043998,-500.0,0.00022999,2]
[313350064,1707207044008,-500.0,0.00022999,2]
[313350065,1707207044017,-500.0,0.00022999,2]
[313350066,1707207044027,-500.0,0.00022999,2]
[313350067,1707207044036,-500.0,0.00022999,2]
[313350068,1707207044046,-590.0,0.00023,2]
[313350069,1707207044055,-28946.64443855,0.00023,2]
[313350070,1707207044266,-24750.69539287,0.00023,2]
[313350071,1707207044277,-314.81489161,0.00023,2]
[313350072,1707207044325,-317.67458593,0.00023,2]
[313350073,1707207044336,-3384.87796955,0.00023,2]
[313350074,1707207045502,-365.5888916,0.00022923,2]
[313350075,1707207045512,-43.35850827,0.00022923,2]
[313350076,1707207045524,-112.07193281,0.00022923,2]
[313350077,1707207045534,-1622.98479564,0.00023,2]
[313350078,1707207045559,-1000.0,0.00023,2]
[313350079,1707207045571,-3302.68931943,0.00023,2]
[313350080,1707207045615,-8068.26749771,0.00023,2]
[313350081,1707207045627,-299.975,0.00023,2]
[313350082,1707207045672,-4371.53791403,0.00023,2]
[313350083,1707207045685,-3630.89559164,0.00023,2]
[313350084,1707207045697,-1108.87164166,0.00023,2]
[313350085,1707207045709,-3310.93377146,0.00023,2]
[313350086,1707207045722,-549.75915909,0.00023,2]
[313350087,1707207045734,-848.17260381,0.00023,2]
[313350088,1707207045746,-763.70530403,0.00023,2]
[313350089,1707207045758,-506.11956309,0.00023,2]
[313350090,1707207045789,-1768.46075324,0.00023,2]
[313350091,1707207045801,-2618.79815569,0.00023,2]
[313350092,1707207045816,-513.99152486,0.00023,2]
[313350093,1707207045828,-44533.38352526,0.00023,2]
[313350094,1707207045841,-827.63640438,0.00023,2]
[313350095,1707207045853,-446.28923784,0.00023,2]
[313350096,1707207045866,-322.8916,0.00023,2]
[313350097,1707207045901,-24920.98598445,0.00023,2]
[313350098,1707207045913,-34901.19470506,0.00023,2]
[313350099,1707207045925,-37385.36750133,0.00023,2]
[313350102,1707207156624,-3131.67655704,0.00022681,2]
[313350103,1707207156650,-321.83542021,0.00022681,2]
[313350104,1707207156677,-150.0,0.00022682,2]
[313350105,1707207156707,-170.68996443,0.00022898,2]
[313350106,1707207156732,-16090.7999382,0.00022899,2]
[313350107,1707207156917,-5000.0,0.000229,2]
[313350108,1707207156943,-170.68996443,0.000229,2]
[313350109,1707207156967,-375.40729188,0.000229,2]
[313350110,1707207156991,-2503.83566561,0.00022997,2]
[313350111,1707207157019,-306.66515091,0.00022998,2]
[313350112,1707207157044,-2021.90800914,0.00022998,2]
[313350113,1707207157069,-1117.33300328,0.00022998,2]
[313350114,1707207157093,-691.91129771,0.00022998,2]
[313350115,1707207157117,-400.0,0.00022998,2]
[313350116,1707207157141,-203.20130374,0.00022998,2]
[313350117,1707207157166,-285.40187788,0.00022998,2]
[313350118,1707207157190,-978.35552609,0.00022998,2]
[313350119,1707207157214,-2327.88539827,0.00022998,2]
[313350120,1707207157239,-177.02480342,0.00022998,2]
[313350121,1707207157263,-1984.47699489,0.00022998,2]
[313350122,1707207157288,-268.48612961,0.00022998,2]
[313350123,1707207157313,-3338.02886732,0.00022998,2]
[313350124,1707207157337,-286.21460664,0.00022998,2]
[313350125,1707207157361,-375.75496917,0.00022998,2]
[313350126,1707207157386,-275.91646464,0.00022998,2]
[313350127,1707207157410,-156.91776276,0.00022998,2]
[313350128,1707207157435,-1638.81505431,0.00022998,2]
[313350129,1707207157459,-1148.40813302,0.00022998,2]
[313350130,1707207157483,-293.05294309,0.00022998,2]
[313350131,1707207157507,-1359.81309579,0.00022999,2]
[313350132,1707207157531,-7875.49380652,0.00022999,2]
[313350138,1707207349263,33176.31934937,0.00022,2]
[313350139,1707207349290,7800.18158064,0.00022,2]
[313350140,1707207393931,150.0,0.00022,2]
[313350141,1707207412930,158.51,0.00021132,2]
[313350142,1707207662009,2770.06075677,0.00022072,2]
[313350143,1707207693921,207.0,0.00022058,2]
[313350144,1707207732171,156.58795752,0.00020693,2]
[313350145,1707207844111,205.0,0.00022058,2]
[313350146,1707207845056,200.0,0.000226,8]
[313350147,1707207847444,500.0,0.000227,8]
[313350148,1707207849288,700.0,0.000228,8]
[313350149,1707207851385,1000.0,0.000229,8]
[313350150,1707207901394,150.32,0.00021125,2]
[313350151,1707207903848,210.0,0.00022058,2]
[313350152,1707207952632,1101.85634454,0.00022058,2]
[313350153,1707207970956,180.48741496,0.00022058,2]
[313350154,1707207971880,176.99,0.00022,2]
[313350155,1707207973156,353.63,0.00022548,2]
[313350156,1707207994865,500.0,0.00022,2]
[313350157,1707207997933,3134.76429599,0.00021845,2]
[313350158,1707208066697,1248.86616154,0.0002705,120]
[313350159,1707208108502,766.86640106,0.00023,3]
[313350160,1707208111028,176.28,0.00022022,2]
[313350161,1707208192053,737.6,0.00021911,2]
[313350162,1707208205670,159.93,0.00021926,2]
[313350163,1707208231459,383.43320053,0.00023,3]
[313350169,1707208231669,-155.93709559,0.0002273,2]
[313350170,1707208231678,-177.07106146,0.00022731,2]
[313350171,1707208231689,-144.76435875,0.00022731,2]
[313350172,1707208231698,-531.08932322,0.00022732,2]
[313350173,1707208231707,-1312.35855102,0.00022733,2]
[313350174,1707208231716,-559.72436048,0.00022754,2]
[313350175,1707208231727,-2172.92551066,0.00022754,2]
[313350176,1707208231750,-2459.08734981,0.00022754,2]
[313350177,1707208231785,-1460.75587726,0.00022754,2]
[313350178,1707208231796,-677.95451397,0.00022754,2]
[313350179,1707208231807,-1986.05009736,0.00022754,2]
[313350180,1707208231816,-717.06,0.00022757,2]
[313350181,1707208231825,-396.18042175,0.00022758,2]
[313350182,1707208231844,-324.74957825,0.00022758,2]
[313350183,1707208231853,-731.98,0.00022759,2]
[313350184,1707208231862,-731.79,0.0002276,2]
[313350185,1707208231870,-714.15,0.00022761,2]
[313350186,1707208231879,-4196.39615405,0.00022764,2]
[313350187,1707208231890,-954.42911239,0.00022764,2]
[313350189,1707208231913,-32101.10235346,0.00022764,2]
[313350194,1707208231924,-24706.08980002,0.00022764,2]
[313350201,1707208237685,-253.89399304,0.00022764,2]
[313350202,1707208237697,-858.74623956,0.00022764,2]
[313350203,1707208237709,-390.83555484,0.00022764,2]
[313350204,1707208237729,-977.46048853,0.00022764,2]
[313350205,1707208237895,-43027.612844,0.00022764,2]
[313350206,1707208237907,-419.6410628,0.00022764,2]
[313350207,1707208237919,-3395.54794444,0.00022764,2]
[313350208,1707208238033,-140140.89619231,0.00022764,2]
[313350209,1707208238045,-462.2961555,0.00022764,2]
[313350210,1707208238057,-476.81877672,0.00022764,2]
[313350211,1707208238068,-2145.76887824,0.00022764,2]
[313350212,1707208238081,-276.57178118,0.00022764,2]
[313350214,1707208238098,-574.78733523,0.00022764,2]
[313350228,1707208240286,-686.73117894,0.00022764,2]
[313350229,1707208240298,-500.0,0.00022764,2]
[313350230,1707208240934,-298.53313397,0.00022764,2]
[313350231,1707208240946,-22392.80644914,0.00022765,2]
[313350232,1707208240956,-282.25014448,0.00022765,2]
[313350233,1707208240966,-392.75,0.00022765,2]
[313350234,1707208240975,-2033.85,0.00022765,2]
[313350235,1707208240985,-5666.04592298,0.0002277,2]
[313350236,1707208240995,-650.60910191,0.00022786,2]
[313350237,1707208241004,-161.45496342,0.00022799,2]
[313350238,1707208241014,-167.0,0.00022804,2]
[313350239,1707208241024,-8100.35,0.00022804,2]
[313350240,1707208241033,-161.45496341,0.00022833,2]
[313350241,1707208241042,-161.45496341,0.00022866,2]
[313350242,1707208241051,-840.0,0.00022876,2]
[313350243,1707208241060,-1034.0,0.00022876,2]
[313350244,1707208241069,-1232.0,0.00022876,2]
[313350245,1707208241082,-1251.0,0.00022876,2]
[313350246,1707208241091,-2411.3271,0.00022897,2]
[313350247,1707208241101,-14974.599,0.00022899,2]
[313350248,1707208241110,-3667.072,0.00022899,2]
[313350249,1707208241120,-18166.6094,0.00022899,2]
[313350250,1707208241129,-1907.4254,0.00022899,2]
[313350251,1707208241139,-2335.0672,0.000229,2]
[313350255,1707208241298,-500.0,0.000229,2]
[313350257,1707208241308,-3667.50460989,0.000229,2]
[313350258,1707208241317,-154.96759069,0.000229,2]
[313350259,1707208241326,-1509.0,0.000229,2]
[313350260,1707208241335,-161.45496341,0.000229,2]
[313350261,1707208241344,-5000.0,0.000229,2]
[313350262,1707208241353,-333.16660944,0.000229,2]
[313350263,1707208241363,-1012.0,0.000229,2]
[313350264,1707208241375,-790.91438431,0.000229,2]
[313350265,1707208241384,-262.4,0.00022931,2]
[313350266,1707208241394,-689.48,0.00022973,2]
[313350267,1707208241403,-499.99,0.00022973,2]
[313350268,1707208241412,-4539.732,0.00022983,2]
[313350269,1707208241421,-2919.0,0.00022983,2]
[313350270,1707208241430,-2284.0,0.00022983,2]
[313350271,1707208241440,-19798.0,0.00022983,2]
[313350272,1707208241449,-378.393,0.00022983,2]
[313350273,1707208241459,-950.0,0.00022983,2]
[313350274,1707208241468,-296.22914882,0.00022995,2]
[313350275,1707208241477,-155.0,0.00022995,2]
[313350276,1707208241486,-372.52079518,0.00022995,2]
[313350277,1707208241495,-290.58226449,0.00022995,2]
[313350278,1707208241505,-1077.19745706,0.00022995,2]
[313350279,1707208241514,-155.37172237,0.00022995,2]
[313350280,1707208241523,-582.65949349,0.00022995,2]
[313350281,1707208241531,-185.09813541,0.00022995,2]
[313350282,1707208241540,-156.4968129,0.00022995,2]
[313350283,1707208241549,-6457.69392305,0.00022995,2]
[313350284,1707208241559,-489.30479157,0.00022995,2]
[313350285,1707208241568,-2692.44354964,0.00022995,2]
[313350286,1707208241577,-176.48198803,0.00022995,2]
[313350287,1707208241586,-2024.56407559,0.00022995,2]
[313350288,1707208241595,-570.43803156,0.00022995,2]
[313350289,1707208241604,-165.7725131,0.00022995,2]
[313350290,1707208241613,-237.14182394,0.00022995,2]
[313350291,1707208241622,-2269.24,0.00022995,2]
[313350292,1707208241631,-528.2831667,0.00022995,2]
[313350293,1707208241640,-513.77665845,0.00022995,2]
[313350294,1707208241650,-982.39752234,0.00022995,2]
[313350295,1707208241659,-1285.11172488,0.00022996,2]
[313350296,1707208241668,-13305.29650148,0.00022996,2]
[313350297,1707208241677,-156.55592593,0.00022996,2]
[313350298,1707208241686,-157.36637405,0.00022996,2]
[313350299,1707208241695,-4424.05692516,0.00022997,2]
[313350300,1707208241704,-73545.68845641,0.00022997,2]
[313350301,1707208241725,-410.44886537,0.00022997,2]
[313350302,1707208241737,-1048.582763,0.00022997,2]
[313350303,1707208241749,-500.4773228,0.00022997,2]
[313350304,1707208241760,-2710.38515923,0.00022997,2]
[313350305,1707208241772,-870.04741799,0.00022997,2]
[313350306,1707208241783,-1003.471,0.00022997,2]
[313350307,1707208241795,-470.2,0.00022997,2]
[313350308,1707208241807,-548.1,0.00022997,2]
[313350309,1707208241842,-347.96609508,0.00022997,2]
[313350310,1707208241854,-48358.45964302,0.00022997,2]
[313350311,1707208241863,-222175.40267348,0.00022999,2]
[313350312,1707208241873,-3309.97832316,0.00022999,2]
[313350313,1707208241882,-5667.92,0.00022999,2]
[313350314,1707208241890,-515.28,0.00022999,2]
[313350315,1707208241899,-500.0,0.00022999,2]
[313350316,1707208241909,-500.0,0.00022999,2]
[313350317,1707208241918,-500.0,0.00022999,2]
[313350318,1707208241927,-500.0,0.00022999,2]
[313350319,1707208241938,-223.55556142,0.00022999,2]
[313350320,1707208241948,-215931.02965766,0.00023,2]
[313350321,1707208241958,-493925.62479573,0.00023,2]
[313350322,1707208241970,-7474.78680611,0.00023,2]
[313350323,1707208241983,-2828.01795911,0.00023,2]
[313350324,1707208242010,-2203.4,0.00023,2]
[313350325,1707208242036,-934.37383079,0.00023,2]
[313350326,1707208242048,-480.77972154,0.00023,2]
[313350327,1707208242059,-458.69698109,0.00023,2]
[313350328,1707208242071,-859.88,0.00023,2]
[313350370,1707208244048,-531.08932322,0.00022899,2]
[313350371,1707208244057,-12514.04883692,0.00023,2]
[313350372,1707208244069,-4181.80502105,0.00023,2]
[313350373,1707208244080,-1933.5958801,0.00023,2]
[313350374,1707208244092,-9769.60887954,0.00023,2]
[313350375,1707208244126,-344.0669848,0.00023,2]
[313350376,1707208244184,-1418.55886843,0.00023,2]
[313350377,1707208244196,-5017.60331005,0.00023,2]
[313350378,1707208244243,-255.07600327,0.00023,2]
[313350383,1707208245674,-190.53347575,0.00022899,2]
[313350384,1707208245684,-172.30944981,0.00023,2]
[313350385,1707208245697,-11535.26027201,0.00023,2]
[313350386,1707208245732,-3238.09923041,0.00023,2]
[313350387,1707208245744,-900.15046863,0.00023,2]
[313350388,1707208245756,-3017.77944775,0.00023,2]
[313350389,1707208246113,-0.27590142,0.00023,2]
[313350390,1707208246125,-1713.60714684,0.00023,2]
[313350391,1707208246136,-512.23116697,0.00023,2]
[313350392,1707208246147,-1166.20000001,0.00023,2]
[313350393,1707208246160,-1364.46734126,0.00023,2]
[313350394,1707208246171,-24042.11249482,0.00023,2]
[313350395,1707208246187,-538.63158845,0.00023,2]
[313350396,1707208246199,-276.90558802,0.00023,2]
[313350397,1707208246210,-11561.84943732,0.00023,2]
[313350398,1707208289615,756.4864889,0.00021847,7]
[313350399,1707208317780,155.93850142,0.00022999,3]
[313350400,1707208317866,150.1,0.00023,3]
[313350401,1707208325774,151.0206,0.00023,3]
[313350402,1707208326623,151.0206,0.00023,3]
[313350403,1707208327387,151.0206,0.00023,3]
[313350404,1707208328172,151.0206,0.00023,3]
[313350405,1707208328938,151.0206,0.00023,3]
[313350406,1707208329831,151.0206,0.00023,3]
[313350407,1707208330660,151.0206,0.00023,3]
[313350408,1707208332213,151.0206,0.00023,3]
[313350409,1707208348513,367.30889459,0.00023,3]
[313350410,1707208391987,372.20721716,0.00023,3]
[313350411,1707208402945,3397.25797,0.00020548,7]
[313350412,1707208436777,235.12543263,0.00022435,2]
[313350413,1707208443426,161.32040535,0.00022564,2]
[313350414,1707208463248,268.83625673,0.00022003,2]
[313350415,1707208467313,150.32,0.00020165,2]
[313350416,1707208468515,183.65444729,0.00023,3]
[313350417,1707208591261,183.65444729,0.00023,3]
[313350418,1707208604517,353.22,0.00022,2]
[313350419,1707208634020,409.92,0.00021929,2]
[313350429,1707208680581,150.0,0.00022505,2]
[313350430,1707208687152,215.83,0.00021942,2]
[313350431,1707208700995,1135.7608,0.00022564,2]
[313350432,1707208718765,292.36,0.00021942,2]
[313350433,1707208719419,2885.6967,0.00022564,2]
[313350434,1707208720754,161.08,0.00021942,2]
[313350435,1707208737311,178.21,0.00022146,2]
[313350436,1707208737526,178.21,0.00022434,2]
[313350438,1707208843089,6296.2523498,0.00022564,2]
[313350439,1707208859037,185.2,0.00021866,2]
[313350440,1707208876537,153.30214944,0.00022,2]
[313350441,1707208880588,250.0,0.00021876,2]
[313350442,1707208934857,154.82,0.00019958,2]
[313350443,1707209010853,167.42,0.00022497,2]
[313350444,1707209039819,1250.0,0.00022464,2]
[313350445,1707209040196,1250.0,0.00022464,2]
[313350446,1707209040649,200.0,0.00021845,2]
[313350447,1707209072287,2000.0,0.00021832,2]
[313350448,1707209073273,600.0,0.00021832,2]
[313350449,1707209133816,207.0,0.00021852,2]
[313350450,1707209144299,672.06,0.00021856,2]
[313350451,1707209156934,342.72,0.00021859,2]
[313350452,1707209171509,161.08,0.00021859,2]
[313350453,1707209201605,171.35,0.00022011,2]
[313350454,1707209201808,171.35,0.00022393,2]
[313350455,1707209212108,-237.58630637,0.00022532,2]
[313350456,1707209251708,19458.75,0.00021848,2]
[313350457,1707209285404,161.39,0.00021858,2]
[313350458,1707209351836,160607.5919,0.00022464,2]
[313350459,1707209403764,179.69139955,0.00022464,2]
[313350460,1707209404248,209.0,0.00021852,2]
[313350461,1707209408770,179.6913994,0.00022487,2]
[313350470,1707209431987,-321.83542021,0.00022509,2]
[313350471,1707209432001,-179.6913994,0.0002251,2]
[313350472,1707209432011,-179.6913994,0.00022533,2]
[313350473,1707209432022,-179.6913994,0.00022556,2]
[313350474,1707209432031,-237.58405875,0.00022562,2]
[313350475,1707209432040,-831.76136269,0.00022563,2]
[313350476,1707209432050,-11136.10549591,0.00022563,2]
[313350477,1707209432059,-2244.59363278,0.00022564,2]
[313350489,1707209437984,-453.13124084,0.00022564,2]
[313350490,1707209437995,-1109.2339416,0.00022564,2]
[313350491,1707209438092,-1712.04,0.00022564,2]
[313350497,1707209440412,-2789.2038977,0.00022564,2]
[313350498,1707209440467,-260.54,0.00022564,2]
[313350499,1707209441102,-41016.62228708,0.00022564,2]
[313350500,1707209441112,-179.6913994,0.00022579,2]
[313350501,1707209441122,-1706.64457206,0.0002259,2]
[313350502,1707209441133,-179.6913994,0.00022602,2]
[313350503,1707209441143,-839.7716995,0.0002261,2]
[313350504,1707209441152,-179.6913994,0.00022625,2]
[313350505,1707209441162,-150.0,0.0002263,2]
[313350506,1707209441172,-154.82,0.00022646,2]
[313350507,1707209441182,-155.71076745,0.00022662,2]
[313350508,1707209441192,-310.17962013,0.00022662,2]
[313350509,1707209441201,-4000.0,0.00022662,2]
[313350510,1707209441211,-155.61152384,0.00022662,2]
[313350511,1707209441221,-157.51912204,0.00022662,2]
[313350512,1707209441230,-168.6577021,0.00022662,2]
[313350513,1707209441240,-204.02044638,0.00022662,2]
[313350514,1707209441249,-160.76988121,0.00022662,2]
[313350515,1707209441263,-390.58352314,0.00022662,2]